Workbook

Sheet Summary
B1: In this Funding Opportunity, SunShot is piloting a methodology for estimating reductions in LCOE that may result from each project proposal, if the milestones are met and the technology was scaled-up.
B2: Applicants are asked to estimate changes to key LCOE cost input parameters resulting from the project, relative to some established technology for which the cost parameters are fairly well-known.
K4: Underlying philosophy
K5: Assume that the project meets its milestones and is subsequently scaled-up for high-volume production
K6: Provide a High estimate for each input value, beyond which would be surprising (90th percentile)
K7: Provide a Low estimate for each input value, below which would be surprising (10th percentile)
K8: The key outputs are the probability of a beneficial impact, and the maximum benefit (10% chance to exceed)
K10: Reference case
K11: Reference cases are for a fixed-tilt utility-scale system with 2020 balance-of-system costs
K12: Soft costs are assumed to be power-related (either power-constrained or cost-constrained)
K13: Reference module cost is $0.50/W for Silicon or $0.45/W for ThinFilm; and $1.25/W for CPV with tracker
K15: How differences between High and Low estimates are treated
K16: Each input variable is given a normal distribution centered between the Lo and Hi values
K17: The standard deviation is adjusted so the Lo and Hi values are at the 10th and 90th percentiles
K18: Equations that use these input values give output values that are also treated as normally distributed
L19: The variance of a sum is the sum of the variances (independent variables)
B20: Maximum LCOE reduction is the optimistic threshold of surprise (10% chance to exceed) | L20: The variance of a product of X*Y is E(X)^2*V(Y) + E(Y)^2*V(X) + V(X)*V(Y)
B21: If maximum LCOE reduction is negative then an LCOE reduction is unlikely | M21: where V() is the variance and E() is the mean (expected) value
B22: Proposed projects offering both high value and low risk lie in the upper-right | L22: The variance of Y/X is obtained as the variance of the product of Y * (1/X)
K23: The mean and standard deviation of the output value determine its 10th and 90th percentiles
B24: Explanation of the Three Example Tabs
B25: Silicon: | C25: This tab has a reference case corresponing to p-PERC mono Si in a fixed-tilt utility-scale system. The hypothetical proposal is for a novel n-type cell structure.
B26: ThinFilm: | C26: This tab has a reference case corresponing to double-glass thin-film module in a fixed-tilt utility-scale system. The hypothetical proposal is to make the module bifacial.
B27: CPV: | C27: This tab has a reference case corresponing to a III-V MJ high-concentration module in a dual-axis tracking system. The hypothetical proposal is a lens with better transmittance.

Sheet Silicon
C1: Title: | D1: Novel n-type cell | I1: Lo (10th percentile) values
C2: Reference: | D2: p-PERC mono Si | I2: Hi (90th percentile) values
B3: $/m2 | C3: $/W | D3: W/m2 | E3: $/Wsys | F3: %W/yr | G3: %$/yr
B4: 166 | C4: 0.32 | D4: 180 | E4: =B4/D4+C4 -> 1.242222222 | F4: -0.005 | G4: 0.07
B5: Estimate $/m2 area-cost impact relative to reference
D6: $/m2 | E6: $/m2 | F6: Comments
C7: Module cost reduction: | D7: -14 | E7: -12 | F7: n-type wafers+3 steps, and maybe +3% yield loss
C8: Hardware BOS cost reduction: | D8: 0 | E8: 0 | F8: No change expected
C9: Non-hardware BOS cost reduction: | D9: 0 | E9: 0 | F9: No change expected
C10: Area-related cost ($/m2): | D10: =$B$4-D7-D8-D9 -> 180 | E10: =$B$4-E7-E8-E9 -> 178 | P10: CTM Eff Mult: | Q10: 0.9
B11: Expect 1 -3 $/m2 for each additional process step + additional materials | P11: =-Q31-3*(Q31-P31) -> -0.07767966673 | Q11: 0.99
B12: Estimate $/W power-cost impact relative to reference | P12: =-R31 -> -0.0194282596 | Q12: 0.9
D13: $/W | E13: $/W | F13: Comments | P13: =-Q31 -> 0.01229932569 | Q13: 0.5
C14: Power BOS cost reduction ($/W): | D14: 0 | E14: 0 | F14: For this FOA, convert any $/W impact to $/m2 | P14: =-P31 -> 0.04229232316 | Q14: 0.1
C15: Power-related cost ($/W): | D15: =$C$4-D14 -> 0.32 | E15: =$C$4-E14 -> 0.32 | P15: =-Q31+3*(R31-Q31) -> 0.1074820815 | Q15: 0.01
B16: Estimate W/m2 performance relative to reference | P16: 0 | Q16: =Q34 -> 0.7004638027
D17: W/m2 | E17: W/m2 | F17: Comments | P17: =Q33 -> 0.04229232316 | Q17: 0.1
C18: Additional power: | D18: 4 | E18: 18 | F18: Expect 2% higher cell efficiency, but maybe only 0.5%
C19: Module power: | D19: =$D$4+D18 -> 184 | E19: =$D$4+E18 -> 198
B20: Optionally, adjust power to match deliverable champion lab cell efficiency | P20: Lo | Q20: Mid | R20: Hi
C21: 0.1 cm2: | D21: =D$19/$Q$10/1000+0.01+0.03 -> 0.2444444444 | E21: =E$19/$Q$10/1000+0.01+0.03 -> 0.26 | O21: Power output (W/m2): | P21: =D19 -> 184 | Q21: =(P21+R21)/2 -> 191 | R21: =E19 -> 198
C22: 1 cm2: | D22: =D$19/$Q$10/1000+0.01+0.02 -> 0.2344444444 | E22: =E$19/$Q$10/1000+0.01+0.02 -> 0.25 | O22: Areal cost ($/m2): | P22: =E10 -> 178 | Q22: =(P22+R22)/2 -> 179 | R22: =D10 -> 180
C23: Full wafer: | D23: =D$19/$Q$10/1000+0.01 -> 0.2144444444 | E23: =E$19/$Q$10/1000+0.01 -> 0.23 | O23: Areal component ($/W): | P23: =Q23-SQRT((Q22-P22)^2/Q21^2+(1/R21-1/Q21)^2*Q22^2+(Q22-P22)^2*(1/R21-1/Q21)^2) -> 0.9036287771 | Q23: =Q22/Q21 -> 0.9371727749 | R23: =Q23+SQRT((Q22-R22)^2/Q21^2+(1/P21-1/Q21)^2*Q22^2+(Q22-R22)^2*(1/P21-1/Q21)^2) -> 0.9732090048
B24: Match Lo cell eff at least 1% lower than deliverable when not independently validated | O24: Power cost ($/W): | P24: =E15 -> 0.32 | Q24: =(P24+R24)/2 -> 0.32 | R24: =D15 -> 0.32
B25: Match Lo cell eff at least 1% lower than deliverable if there's no means of interconnection | O25: Total $/Wsys: | P25: =Q25-SQRT((Q23-P23)^2+(Q24-P24)^2) -> 1.223628777 | Q25: =Q23+Q24 -> 1.257172775 | R25: =Q25+SQRT((R23-Q23)^2+(R24-Q24)^2) -> 1.293209005
B26: Match Lo cell eff at least 3% lower than modeled at 0.1 cm2 if not demonstrated | O26: Degrade relative to reference (%/yr): | P26: =(D31-$F$4) -> 0 | Q26: =(P26+R26)/2 -> 0.001 | R26: =(E31-$F$4) -> 0.002 | S26: absolute
B27: Match Hi cell eff 1% higher than deliverable efficiency if it's a lot-average value | O27: Finance relative to reference (%/yr): | P27: =D40-$G$4 -> 0 | Q27: =(P27+R27)/2 -> 0 | R27: =E40-$G$4 -> 0 | S27: absolute
B28: Estimate degradation rate relative to reference | O28: Adjusted finance risk (%/yr): | P28: =Q28-SQRT((Q26-P26)^2+(Q27-P27)^2) -> 0.068 | Q28: =$G$4+Q27-Q26 -> 0.069 | R28: =Q28+SQRT((R26-Q26)^2+(R27-Q27)^2) -> 0.07 | S28: absolute
D29: %W/yr | E29: %W/yr | F29: Comments | O29: Annualized cost ($/Wyr): | P29: =Q29-SQRT((Q25-P25)^2*Q28^2+(Q28-P28)^2*Q25^2+(Q25-P25)^2*(Q28-P28)^2) -> 0.08411078313 | Q29: =Q25*Q28 -> 0.08674492147 | R29: =Q29+SQRT((Q25-R25)^2*Q28^2+(Q28-R28)^2*Q25^2+(Q25-R25)^2*(Q28-R28)^2) -> 0.08953140017
C30: Decreased degradation (W%/yr): | D30: 0 | E30: 0.002 | F30: Expect it's more stable, but maybe not | O30: Energy yield adjustment(%): | P30: =D34 -> 0.01 | Q30: =(P30+R30)/2 -> 0.01 | R30: =E34 -> 0.01 | S30: relative
C31: Degradation rate (W%/yr): | D31: =$F$4+D30 -> -0.005 | E31: =$F$4+E30 -> -0.003 | O31: LCOE relative to reference(delta-%): | P31: =Q31-SQRT((Q29-P29)^2/(1+Q30)^2+(1/(1+Q30)-1/(1+P30))^2*Q29^2+(Q29-P29)^2*(1/(1+Q30)-1/(1+P30))^2)/($E$4*$G$4) -> -0.04229232316 | Q31: =Q29/(1+Q30)/($E$4*$G$4)-1 -> -0.01229932569 | R31: =Q31+SQRT((Q29-R29)^2/(1+Q30)^2+(1/(1+Q30)-1/(1+R30))^2*Q29^2+(Q29-R29)^2*(1/(1+Q30)-1/(1+R30))^2)/($E$4*$G$4) -> 0.0194282596
B32: Estimate annual energy yield (kWh/kW) relative to reference
D33: % | E33: % | F33: Comments | P33: Upside LCOE benefit (delta-%): | Q33: =-P31 -> 0.04229232316 | R33: relative
C34: Yield improvement (%): | D34: 0.01 | E34: 0.01 | F34: Improved temp coeff | P34: Probability of any LCOE benefit: | Q34: =_xlfn.NORM.DIST(0,Q31,0.78*(Q31-P31),TRUE) -> 0.7004638027 | R34: absolute
B35: Add 0.2% for each week reduction of initial non-production time
B36: Expect 1 - 3% for significant increase in Voc or reduction in operating temperature
B37: Estimate finance cost relative to reference
D38: %$/yr | E38: %$/yr | F38: Comments
C39: Finance rate reduction ($%/yr): | D39: 0 | E39: 0 | F39: Not addressed in this FOA
C40: Finance cost $%/yr: | D40: =$G$4-D39 -> 0.07 | E40: =$G$4-E39 -> 0.07

Sheet ThinFilm
C1: Title: | D1: Bifacial Thin Film | I1: Lo (10th percentile) values
C2: Reference: | D2: Thin film double-glass | I2: Hi (90th percentile) values
B3: $/m2 | C3: $/W | D3: W/m2 | E3: $/Wsys | F3: %W/yr | G3: %$/yr
B4: 150 | C4: 0.32 | D4: 165 | E4: =B4/D4+C4 -> 1.229090909 | F4: -0.005 | G4: 0.07
B5: Estimate $/m2 area-cost impact relative to reference
D6: $/m2 | E6: $/m2 | F6: Comments
C7: Module cost reduction: | D7: -6 | E7: -4 | F7: Offset J-box, thicker rear TCO, and maybe +3% yield loss
C8: Hardware BOS cost reduction: | D8: -5 | E8: 0 | F8: No change expected, but may need special mounting
C9: Non-hardware BOS cost reduction: | D9: 0 | E9: 0 | F9: No change expected
C10: Area-related cost ($/m2): | D10: =$B$4-D7-D8-D9 -> 161 | E10: =$B$4-E7-E8-E9 -> 154 | P10: CTM Eff Mult: | Q10: 0.9
B11: Expect 1 -3 $/m2 for each additional process step + additional materials | P11: =-Q31-3*(Q31-P31) -> -0.1730684682 | Q11: 0.99
B12: Estimate $/W power-cost impact relative to reference | P12: =-R31 -> -0.05719335751 | Q12: 0.9
D13: $/W | E13: $/W | F13: Comments | P13: =-Q31 -> -0.003756487941 | Q13: 0.5
C14: Power BOS cost reduction ($/W): | D14: 0 | E14: 0 | F14: For this FOA, convert any $/W impact to $/m2 | P14: =-P31 -> 0.05268083881 | Q14: 0.1
C15: Power-related cost ($/W): | D15: =$C$4-D14 -> 0.32 | E15: =$C$4-E14 -> 0.32 | P15: =-Q31+3*(R31-Q31) -> 0.1565541208 | Q15: 0.01
B16: Estimate W/m2 performance relative to reference | P16: 0 | Q16: =Q34 -> 0.4659980202
D17: W/m2 | E17: W/m2 | F17: Comments | P17: =Q33 -> 0.05268083881 | Q17: 0.1
C18: Additional power: | D18: -9 | E18: 0 | F18: No change expected, but may lose 1% in efficiency
C19: Module power: | D19: =$D$4+D18 -> 156 | E19: =$D$4+E18 -> 165
B20: Optionally, adjust power to match deliverable champion lab cell efficiency | P20: Lo | Q20: Mid | R20: Hi
C21: 0.1 cm2: | D21: =D$19/$Q$10/1000+0.01+0.03 -> 0.2133333333 | E21: =E$19/$Q$10/1000+0.01+0.03 -> 0.2233333333 | O21: Power output (W/m2): | P21: =D19 -> 156 | Q21: =(P21+R21)/2 -> 160.5 | R21: =E19 -> 165
C22: 1 cm2: | D22: =D$19/$Q$10/1000+0.01+0.02 -> 0.2033333333 | E22: =E$19/$Q$10/1000+0.01+0.02 -> 0.2133333333 | O22: Areal cost ($/m2): | P22: =E10 -> 154 | Q22: =(P22+R22)/2 -> 157.5 | R22: =D10 -> 161
C23: Full wafer: | D23: =D$19/$Q$10/1000+0.01 -> 0.1833333333 | E23: =E$19/$Q$10/1000+0.01 -> 0.1933333333 | O23: Areal component ($/W): | P23: =Q23-SQRT((Q22-P22)^2/Q21^2+(1/R21-1/Q21)^2*Q22^2+(Q22-P22)^2*(1/R21-1/Q21)^2) -> 0.9467809089 | Q23: =Q22/Q21 -> 0.9813084112 | R23: =Q23+SQRT((Q22-R22)^2/Q21^2+(1/P21-1/Q21)^2*Q22^2+(Q22-R22)^2*(1/P21-1/Q21)^2) -> 1.017046616
B24: Match Lo cell eff at least 1% lower than deliverable when not independently validated | O24: Power cost ($/W): | P24: =E15 -> 0.32 | Q24: =(P24+R24)/2 -> 0.32 | R24: =D15 -> 0.32
B25: Match Lo cell eff at least 1% lower than deliverable if there's no means of interconnection | O25: Total $/Wsys: | P25: =Q25-SQRT((Q23-P23)^2+(Q24-P24)^2) -> 1.266780909 | Q25: =Q23+Q24 -> 1.301308411 | R25: =Q25+SQRT((R23-Q23)^2+(R24-Q24)^2) -> 1.337046616
B26: Match Lo cell eff at least 3% lower than modeled at 0.1 cm2 if not demonstrated | O26: Degrade relative to reference (%/yr): | P26: =(D31-$F$4) -> -0.004 | Q26: =(P26+R26)/2 -> -0.003 | R26: =(E31-$F$4) -> -0.002 | S26: absolute
B27: Match Hi cell eff 1% higher than deliverable efficiency if it's a lot-average value | O27: Finance relative to reference (%/yr): | P27: =D40-$G$4 -> 0 | Q27: =(P27+R27)/2 -> 0 | R27: =E40-$G$4 -> 0 | S27: absolute
B28: Estimate degradation rate relative to reference | O28: Adjusted finance risk (%/yr): | P28: =Q28-SQRT((Q26-P26)^2+(Q27-P27)^2) -> 0.072 | Q28: =$G$4+Q27-Q26 -> 0.073 | R28: =Q28+SQRT((R26-Q26)^2+(R27-Q27)^2) -> 0.074 | S28: absolute
D29: %W/yr | E29: %W/yr | F29: Comments | O29: Annualized cost ($/Wyr): | P29: =Q29-SQRT((Q25-P25)^2*Q28^2+(Q28-P28)^2*Q25^2+(Q25-P25)^2*(Q28-P28)^2) -> 0.09215869279 | Q29: =Q25*Q28 -> 0.09499551402 | R29: =Q29+SQRT((Q25-R25)^2*Q28^2+(Q28-R28)^2*Q25^2+(Q25-R25)^2*(Q28-R28)^2) -> 0.09791115845
C30: Decreased degradation (W%/yr): | D30: -0.004 | E30: -0.002 | F30: Early tests suggest slightly faster degradation | O30: Energy yield adjustment(%): | P30: =D34 -> 0.05 | Q30: =(P30+R30)/2 -> 0.1 | R30: =E34 -> 0.15 | S30: relative
C31: Degradation rate (W%/yr): | D31: =$F$4+D30 -> -0.009 | E31: =$F$4+E30 -> -0.007 | O31: LCOE relative to reference(delta-%): | P31: =Q31-SQRT((Q29-P29)^2/(1+Q30)^2+(1/(1+Q30)-1/(1+P30))^2*Q29^2+(Q29-P29)^2*(1/(1+Q30)-1/(1+P30))^2)/($E$4*$G$4) -> -0.05268083881 | Q31: =Q29/(1+Q30)/($E$4*$G$4)-1 -> 0.003756487941 | R31: =Q31+SQRT((Q29-R29)^2/(1+Q30)^2+(1/(1+Q30)-1/(1+R30))^2*Q29^2+(Q29-R29)^2*(1/(1+Q30)-1/(1+R30))^2)/($E$4*$G$4) -> 0.05719335751
B32: Estimate annual energy yield (kWh/kW) relative to reference
D33: % | E33: % | F33: Comments | P33: Upside LCOE benefit (delta-%): | Q33: =-P31 -> 0.05268083881 | R33: relative
C34: Yield improvement (%): | D34: 0.05 | E34: 0.15 | F34: Expect 15% bifacial gain, but maybe only 5% | P34: Probability of any LCOE benefit: | Q34: =_xlfn.NORM.DIST(0,Q31,0.78*(Q31-P31),TRUE) -> 0.4659980202 | R34: absolute
B35: Add 0.2% for each week reduction of initial non-production time
B36: Expect 1 - 3% for significant increase in Voc or reduction in operating temperature
B37: Estimate finance cost relative to reference
D38: %$/yr | E38: %$/yr | F38: Comments
C39: Finance rate reduction ($%/yr): | D39: 0 | E39: 0 | F39: Not addressed in this FOA
C40: Finance cost $%/yr: | D40: =$G$4-D39 -> 0.07 | E40: =$G$4-E39 -> 0.07

Sheet CPV
C1: Title: | D1: Improved fresnel lens | I1: Lo (10th percentile) values
C2: Reference: | D2: III-V MJ CPV | I2: Hi (90th percentile) values
B3: $/m2 | C3: $/W | D3: W/m2 | E3: $/Wsys | F3: %W/yr | G3: %$/yr
B4: 450 | C4: 0.32 | D4: 360 | E4: =B4/D4+C4 -> 1.57 | F4: -0.01 | G4: 0.1
B5: Estimate $/m2 area-cost impact relative to reference
D6: $/m2 | E6: $/m2 | F6: Comments
C7: Module cost reduction: | D7: -25 | E7: -5 | F7: Increased lens cost, but could be 5x higher
C8: Hardware BOS cost reduction: | D8: 0 | E8: 0 | F8: No change expected
C9: Non-hardware BOS cost reduction: | D9: 0 | E9: 0 | F9: No change expected
C10: Area-related cost ($/m2): | D10: =$B$4-D7-D8-D9 -> 475 | E10: =$B$4-E7-E8-E9 -> 455 | P10: CTM Eff Mult: | Q10: 0.9
B11: Expect 1 -3 $/m2 for each additional process step + additional materials | P11: =-Q31-3*(Q31-P31) -> -0.1246835416 | Q11: 0.99
B12: Estimate $/W power-cost impact relative to reference | P12: =-R31 -> -0.0404007142 | Q12: 0.9
D13: $/W | E13: $/W | F13: Comments | P13: =-Q31 -> 0.001068695764 | Q13: 0.5
C14: Power BOS cost reduction ($/W): | D14: 0 | E14: 0 | F14: For this FOA, convert any $/W impact to $/m2 | P14: =-P31 -> 0.04298610823 | Q14: 0.1
C15: Power-related cost ($/W): | D15: =$C$4-D14 -> 0.32 | E15: =$C$4-E14 -> 0.32 | P15: =-Q31+3*(R31-Q31) -> 0.1254769256 | Q15: 0.01
B16: Estimate W/m2 performance relative to reference | P16: 0 | Q16: =Q34 -> 0.5130376032
D17: W/m2 | E17: W/m2 | F17: Comments | P17: =Q33 -> 0.04298610823 | Q17: 0.1
C18: Additional power: | D18: 5 | E18: 20 | F18: Expect 2% abs higher module eff, but maybe only 0.5%
C19: Module power: | D19: =$D$4+D18 -> 365 | E19: =$D$4+E18 -> 380
B20: Optionally, adjust power to match deliverable champion lab cell efficiency | P20: Lo | Q20: Mid | R20: Hi
C21: 0.1 cm2: | D21: =D$19/$Q$10/1000+0.01+0.03 -> 0.4455555556 | E21: =E$19/$Q$10/1000+0.01+0.03 -> 0.4622222222 | O21: Power output (W/m2): | P21: =D19 -> 365 | Q21: =(P21+R21)/2 -> 372.5 | R21: =E19 -> 380
C22: 1 cm2: | D22: =D$19/$Q$10/1000+0.01+0.02 -> 0.4355555556 | E22: =E$19/$Q$10/1000+0.01+0.02 -> 0.4522222222 | O22: Areal cost ($/m2): | P22: =E10 -> 455 | Q22: =(P22+R22)/2 -> 465 | R22: =D10 -> 475
C23: Full wafer: | D23: =D$19/$Q$10/1000+0.01 -> 0.4155555556 | E23: =E$19/$Q$10/1000+0.01 -> 0.4322222222 | O23: Areal component ($/W): | P23: =Q23-SQRT((Q22-P22)^2/Q21^2+(1/R21-1/Q21)^2*Q22^2+(Q22-P22)^2*(1/R21-1/Q21)^2) -> 1.211880455 | Q23: =Q22/Q21 -> 1.248322148 | R23: =Q23+SQRT((Q22-R22)^2/Q21^2+(1/P21-1/Q21)^2*Q22^2+(Q22-R22)^2*(1/P21-1/Q21)^2) -> 1.285456207
B24: Match Lo cell eff at least 1% lower than deliverable when not independently validated | O24: Power cost ($/W): | P24: =E15 -> 0.32 | Q24: =(P24+R24)/2 -> 0.32 | R24: =D15 -> 0.32
B25: Match Lo cell eff at least 1% lower than deliverable if there's no means of interconnection | O25: Total $/Wsys: | P25: =Q25-SQRT((Q23-P23)^2+(Q24-P24)^2) -> 1.531880455 | Q25: =Q23+Q24 -> 1.568322148 | R25: =Q25+SQRT((R23-Q23)^2+(R24-Q24)^2) -> 1.605456207
B26: Match Lo cell eff at least 3% lower than modeled at 0.1 cm2 if not demonstrated | O26: Degrade relative to reference (%/yr): | P26: =(D31-$F$4) -> -0.005 | Q26: =(P26+R26)/2 -> -0.0025 | R26: =(E31-$F$4) -> 0 | S26: absolute
B27: Match Hi cell eff 1% higher than deliverable efficiency if it's a lot-average value | O27: Finance relative to reference (%/yr): | P27: =D40-$G$4 -> 0 | Q27: =(P27+R27)/2 -> 0 | R27: =E40-$G$4 -> 0 | S27: absolute
B28: Estimate degradation rate relative to reference | O28: Adjusted finance risk (%/yr): | P28: =Q28-SQRT((Q26-P26)^2+(Q27-P27)^2) -> 0.1 | Q28: =$G$4+Q27-Q26 -> 0.1025 | R28: =Q28+SQRT((R26-Q26)^2+(R27-Q27)^2) -> 0.105 | S28: absolute
D29: %W/yr | E29: %W/yr | F29: Comments | O29: Annualized cost ($/Wyr): | P29: =Q29-SQRT((Q25-P25)^2*Q28^2+(Q28-P28)^2*Q25^2+(Q25-P25)^2*(Q28-P28)^2) -> 0.1553369992 | Q29: =Q25*Q28 -> 0.1607530201 | R29: =Q29+SQRT((Q25-R25)^2*Q28^2+(Q28-R28)^2*Q25^2+(Q25-R25)^2*(Q28-R28)^2) -> 0.1662182561
C30: Decreased degradation (W%/yr): | D30: -0.005 | E30: 0 | F30: No effect expected, but may degrade faster | O30: Energy yield adjustment(%): | P30: =D34 -> 0 | Q30: =(P30+R30)/2 -> 0.025 | R30: =E34 -> 0.05 | S30: relative
C31: Degradation rate (W%/yr): | D31: =$F$4+D30 -> -0.015 | E31: =$F$4+E30 -> -0.01 | O31: LCOE relative to reference(delta-%): | P31: =Q31-SQRT((Q29-P29)^2/(1+Q30)^2+(1/(1+Q30)-1/(1+P30))^2*Q29^2+(Q29-P29)^2*(1/(1+Q30)-1/(1+P30))^2)/($E$4*$G$4) -> -0.04298610823 | Q31: =Q29/(1+Q30)/($E$4*$G$4)-1 -> -0.001068695764 | R31: =Q31+SQRT((Q29-R29)^2/(1+Q30)^2+(1/(1+Q30)-1/(1+R30))^2*Q29^2+(Q29-R29)^2*(1/(1+Q30)-1/(1+R30))^2)/($E$4*$G$4) -> 0.0404007142
B32: Estimate annual energy yield (kWh/kW) relative to reference
D33: % | E33: % | F33: Comments | P33: Upside LCOE benefit (delta-%): | Q33: =-P31 -> 0.04298610823 | R33: relative
C34: Yield improvement (%): | D34: 0 | E34: 0.05 | F34: Expect reduced soiling, but maybe not | P34: Probability of any LCOE benefit: | Q34: =_xlfn.NORM.DIST(0,Q31,0.78*(Q31-P31),TRUE) -> 0.5130376032 | R34: absolute
B35: Add 0.2% for each week reduction of initial non-production time
B36: Expect 1 - 3% for significant increase in Voc or reduction in operating temperature
B37: Estimate finance cost relative to reference
D38: %$/yr | E38: %$/yr | F38: Comments
C39: Finance rate reduction ($%/yr): | D39: 0 | E39: 0 | F39: Not addressed in this FOA
C40: Finance cost $%/yr: | D40: =$G$4-D39 -> 0.1 | E40: =$G$4-E39 -> 0.1
